fUST/lending_fUST_20250108
["ID","MTS","AMOUNT","RATE_DAILY","PERIOD"]
[348084760,1736298649713,-233.97,0.00022465,3]
[348084761,1736298649722,-4993.25,0.00022465,3]
[348084762,1736298649731,-434.31180412,0.00022465,3]
[348084763,1736298649741,-252.62,0.00022465,3]
[348084764,1736298649750,-500.0,0.00022465,3]
[348084765,1736298649759,-1911.48,0.00022465,3]
[348084766,1736298649768,-12060.56985254,0.00022486,2]
[348084767,1736298649778,-151.0,0.000225,9]
[348084768,1736298649787,-1000.0,0.00022521,2]
[348084769,1736298649797,-345.14232056,0.00022521,2]
[348084770,1736298649807,-12060.56985254,0.0002259,2]
[348084771,1736298649816,-500.67,0.00022641,2]
[348084772,1736298649826,-1200.0,0.00022641,2]
[348084773,1736298649835,-500.0,0.00022683,3]
[348084774,1736298649844,-500.0,0.00022683,3]
[348084775,1736298649853,-771.51,0.00022684,3]
[348084776,1736298649864,-500.0,0.00022684,3]
[348084777,1736298649873,-577.58,0.00022684,3]
[348084778,1736298649882,-500.0,0.00022686,3]
[348084779,1736298649891,-12060.56985254,0.00022693,2]
[348084780,1736298649901,-500.0,0.00022739,3]
[348084781,1736298649910,-500.0,0.00022739,2]
[348084782,1736298649919,-510.64,0.00022739,3]
[348084783,1736298649928,-1959.3,0.00022739,3]
[348084784,1736298649938,-500.0,0.00022739,3]
[348084785,1736298649947,-363.36,0.00022739,3]
[348084786,1736298649956,-4993.25,0.00022739,3]
[348084787,1736298649965,-500.0,0.00022739,3]
[348084788,1736298649974,-1911.48,0.00022739,3]
[348084789,1736298649983,-587.0,0.00022776,2]
[348084790,1736298649992,-12060.56985254,0.00022797,2]
[348084791,1736298650001,-614.42191267,0.000228,7]
[348084792,1736298650010,-614.42191267,0.000228,7]
[348084793,1736298650020,-614.42191267,0.000228,7]
[348084794,1736298650031,-614.42191267,0.000228,7]
[348084795,1736298650040,-614.42191267,0.000228,7]
[348084796,1736298650050,-614.42191267,0.000228,7]
[348084797,1736298650059,-614.42191267,0.000228,7]
[348084798,1736298650068,-614.42191267,0.000228,7]
[348084799,1736298650078,-614.42191267,0.000228,7]
[348084801,1736298650088,-614.42191267,0.000228,7]
[348084803,1736298650099,-614.42191267,0.000228,7]
[348084805,1736298650108,-614.42191267,0.000228,7]
[348084807,1736298650117,-614.42191267,0.000228,7]
[348084809,1736298650127,-614.42191267,0.000228,7]
[348084811,1736298650136,-614.42191267,0.000228,7]
[348084813,1736298650145,-614.42191267,0.000228,7]
[348084815,1736298650154,-614.42191267,0.000228,7]
[348084817,1736298650163,-614.42191267,0.000228,7]
[348084819,1736298650172,-614.42191267,0.000228,7]
[348084821,1736298650182,-614.42,0.000228,7]
[348084823,1736298650191,-921.632869,0.000228,7]
[348084824,1736298650200,-921.632869,0.000228,7]
[348084825,1736298650209,-921.632869,0.000228,7]
[348084827,1736298650219,-921.632869,0.000228,7]
[348084829,1736298650228,-921.632869,0.000228,7]
[348084831,1736298650237,-921.632869,0.000228,7]
[348084832,1736298650247,-921.632869,0.000228,7]
[348084834,1736298650256,-921.632869,0.000228,7]
[348084836,1736298650268,-921.632869,0.000228,7]
[348084838,1736298650279,-921.632869,0.000228,7]
[348084840,1736298650288,-921.632869,0.000228,7]
[348084841,1736298650297,-921.632869,0.000228,7]
[348084842,1736298650307,-921.632869,0.000228,7]
[348084843,1736298650317,-921.632869,0.000228,7]
[348084844,1736298650327,-921.632869,0.000228,7]
[348084845,1736298650336,-921.632869,0.000228,7]
[348084846,1736298650346,-921.632869,0.000228,7]
[348084847,1736298650355,-921.632869,0.000228,7]
[348084848,1736298650364,-921.632869,0.000228,7]
[348084849,1736298650374,-293.10086199,0.000228,7]
[348084850,1736298650383,-293.10086199,0.000228,7]
[348084852,1736298650392,-293.10086199,0.000228,7]
[348084853,1736298650402,-293.10086199,0.000228,7]
[348084854,1736298650411,-293.10086199,0.000228,7]
[348084855,1736298650420,-293.10086199,0.000228,7]
[348084856,1736298650430,-293.10086199,0.000228,7]
[348084857,1736298650440,-293.10086199,0.000228,7]
[348084859,1736298650450,-293.10086199,0.000228,7]
[348084861,1736298650459,-293.10086199,0.000228,7]
[348084862,1736298650468,-293.10086199,0.000228,7]
[348084863,1736298650477,-293.10086199,0.000228,7]
[348084864,1736298650486,-293.10086199,0.000228,7]
[348084865,1736298650496,-293.10086199,0.000228,7]
[348084866,1736298650505,-293.10086199,0.000228,7]
[348084867,1736298650515,-293.10086199,0.000228,7]
[348084868,1736298650524,-293.10086199,0.000228,7]
[348084869,1736298650534,-293.10086199,0.000228,7]
[348084870,1736298650543,-293.10086199,0.000228,7]
[348084871,1736298650552,-293.1,0.000228,7]
[348084872,1736298650561,-439.65129299,0.000228,7]
[348084873,1736298650571,-439.65129299,0.000228,7]
[348084874,1736298650580,-439.65129299,0.000228,7]
[348084875,1736298650589,-439.65129299,0.000228,7]
[348084876,1736298650599,-439.65129299,0.000228,7]
[348084877,1736298650608,-439.65129299,0.000228,7]
[348084878,1736298650617,-439.65129299,0.000228,7]
[348084879,1736298650627,-439.65129299,0.000228,7]
[348084880,1736298650636,-439.65129299,0.000228,7]
[348084881,1736298650645,-439.65129299,0.000228,7]
[348084882,1736298650654,-439.65129299,0.000228,7]
[348084884,1736298650664,-439.65129299,0.000228,7]
[348084886,1736298650676,-439.65129299,0.000228,7]
[348084888,1736298650685,-439.65129299,0.000228,7]
[348084890,1736298650694,-439.65129299,0.000228,7]
[348084892,1736298650704,-439.65129299,0.000228,7]
[348084894,1736298650714,-439.65129299,0.000228,7]
[348084896,1736298650723,-439.65129299,0.000228,7]
[348084898,1736298650732,-439.65129299,0.000228,7]
[348084900,1736298650741,-231.72,0.000228,7]
[348084902,1736298650751,-173.79082142,0.000228,7]
[348084904,1736298650763,-171.63860476,0.00022898,2]
[348084906,1736298650773,-921.63,0.00022898,7]
[348084908,1736298650783,-439.65,0.00022898,7]
[348084910,1736298650792,-173.79,0.00022898,7]
[348084912,1736298650801,-2000.0,0.000229,2]
[348084914,1736298650810,-1850.0,0.000229,10]
[348084916,1736298650819,-594.0,0.000229,10]
[348084918,1736298650828,-150.386345,0.000229,2]
[348084920,1736298650837,-12060.56985254,0.000229,2]
[348084922,1736298650847,-500.0,0.00022957,3]
[348084924,1736298650856,-771.51,0.00022958,3]
[348084926,1736298650865,-577.58,0.00022958,3]
[348084928,1736298650874,-500.0,0.0002296,3]
[348084930,1736298650883,-150.11,0.00022981,2]
[348084932,1736298650892,-950.33,0.00022981,2]
[348084934,1736298650902,-150.11,0.00022981,2]
[348084936,1736298650912,-150.11,0.00022981,2]
[348084938,1736298650921,-150.11,0.00022981,2]
[348084940,1736298650931,-150.11,0.00022981,2]
[348084942,1736298650940,-150.11,0.00022981,2]
[348084944,1736298650949,-500.0,0.00022981,2]
[348084946,1736298650958,-150.11,0.00022981,2]
[348084947,1736298650968,-150.11,0.00022981,2]
[348084948,1736298650979,-158.00450217,0.00022981,2]
[348084950,1736298650988,-500.0,0.00022987,8]
[348084952,1736298650998,-264358.10042249,0.00022998,10]
[348084955,1736298651016,-5392.95319716,0.00022998,10]
[348084957,1736298651027,-8042.01144075,0.00022998,10]
[348084958,1736298651069,-2125.04,0.00019452,3]
[348084959,1736298651079,-2125.04,0.00019726,3]
[348084960,1736298651092,-500.0,0.00022973,2]
[348084961,1736298651103,-4974.02,0.00022998,10]
[348084962,1736298651114,-43100.9545733,0.00022998,10]
[348084971,1736298651195,-299.0,0.0002,3]
[348085028,1736298651893,-1826.04,0.0002,3]
[348085030,1736298651903,-2125.04,0.00020273,3]
[348085032,1736298651912,-2125.04,0.00020547,3]
[348085034,1736298651922,-2125.04,0.00020821,3]
[348085036,1736298651932,-394.0,0.00021324,2]
[348085038,1736298651942,-370826.13166856,0.00022998,10]
[348085040,1736298651954,-8457.75,0.00022998,10]
[348085250,1736298759090,272.0,0.00025,120]
[348085252,1736299305307,162.762063,0.00013973,2]
[348085257,1736299544525,-171.076,0.00019177,2]
[348085258,1736299544549,-5054.0,0.00019177,2]
[348085259,1736299544573,-500.0,0.00019178,2]
[348085260,1736299544604,-601.01,0.00019178,2]
[348085261,1736299544627,-500.0,0.00019178,2]
[348085262,1736299544651,-500.0,0.00019178,2]
[348085263,1736299544675,-500.0,0.00019178,2]
[348085264,1736299544697,-500.0,0.00019178,2]
[348085265,1736299544720,-500.0,0.00019178,2]
[348085266,1736299544742,-500.0,0.00019178,2]
[348085267,1736299544765,-500.0,0.00019178,2]
[348085268,1736299544789,-500.0,0.00019178,2]
[348085269,1736299544812,-500.0,0.00019178,2]
[348085270,1736299544837,-500.0,0.00019178,2]
[348085271,1736299544859,-500.0,0.00019178,2]
[348085272,1736299544883,-570.04417982,0.00019178,2]
[348085273,1736299544908,-500.0,0.00019178,2]
[348085274,1736299544945,-500.0,0.00019178,2]
[348085275,1736299544972,-500.0,0.00019178,2]
[348085276,1736299544996,-500.0,0.00019178,2]
[348085277,1736299545021,-500.0,0.00019178,2]
[348085278,1736299545046,-500.0,0.00019178,2]
[348085279,1736299545070,-500.0,0.00019178,2]
[348085280,1736299545094,-500.0,0.00019178,2]
[348085281,1736299545118,-500.0,0.00019178,2]
[348085282,1736299545142,-200.0,0.00019178,2]
[348085283,1736299545167,-500.0,0.00019178,2]
[348085284,1736299545192,-500.0,0.00019178,2]
[348085285,1736299545216,-500.0,0.00019178,2]
[348085286,1736299545241,-500.0,0.00019178,2]
[348085287,1736299545265,-500.0,0.00019178,2]
[348085288,1736299545291,-500.0,0.00019178,2]
[348085289,1736299545489,-367.62,0.00019178,2]
[348085290,1736299545514,-500.0,0.00019178,2]
[348085292,1736299545539,-500.0,0.00019178,2]
[348085293,1736299545563,-500.0,0.00019178,2]
[348085294,1736299545591,-500.0,0.00019178,2]
[348085296,1736299545617,-500.0,0.00019178,2]
[348085297,1736299545645,-1000.42,0.00019178,2]
[348085298,1736299545669,-500.0,0.00019178,2]
[348085299,1736299545693,-500.0,0.00019178,2]
[348085300,1736299545716,-500.0,0.00019178,2]
[348085301,1736299545741,-500.0,0.00019178,2]
[348085302,1736299545766,-500.0,0.00019178,2]
[348085303,1736299545790,-500.0,0.00019178,2]
[348085304,1736299545813,-500.0,0.00019178,2]
[348085305,1736299545836,-500.0,0.00019178,2]
[348085306,1736299545860,-205.18773444,0.00019178,2]
[348085307,1736299545888,-500.0,0.00019178,2]
[348085308,1736299545914,-500.0,0.00019178,2]
[348085309,1736299545938,-500.0,0.00019178,2]
[348085310,1736299545962,-500.0,0.00019178,2]
[348085311,1736299545986,-500.0,0.00019178,2]
[348085312,1736299546012,-500.0,0.00019178,2]
[348085313,1736299546036,-500.0,0.00019178,2]
[348085314,1736299546059,-500.0,0.00019178,2]
[348085315,1736299546084,-502.08,0.00019178,2]
[348085316,1736299546110,-500.0,0.00019178,2]
[348085317,1736299546135,-500.0,0.00019178,2]
[348085318,1736299546159,-500.0,0.00019178,2]
[348085319,1736299546184,-500.0,0.00019178,2]
[348085320,1736299546209,-500.0,0.00019178,2]
[348085321,1736299546234,-500.0,0.00019178,2]
[348085322,1736299546259,-500.0,0.00019178,2]
[348085323,1736299546284,-500.0,0.00019178,2]
[348085324,1736299546309,-500.0,0.00019178,2]
[348085325,1736299546333,-500.0,0.00019178,2]
[348085326,1736299546358,-500.0,0.00019178,2]
[348085327,1736299546385,-500.0,0.00019178,2]
[348085328,1736299546410,-500.0,0.00019178,2]
[348085329,1736299546436,-500.0,0.00019178,2]
[348085330,1736299546462,-334.7362487,0.00019178,2]
[348085331,1736299546488,-500.0,0.00019178,2]
[348085332,1736299546514,-500.0,0.00019178,2]
[348085333,1736299546541,-500.0,0.00019178,2]
[348085334,1736299546567,-500.0,0.00019178,2]
[348085335,1736299546596,-500.0,0.00019178,2]
[348085336,1736299546623,-620.79,0.00019178,2]
[348085337,1736299546647,-500.0,0.00019178,2]
[348085338,1736299546670,-500.0,0.00019178,2]
[348085339,1736299546695,-500.0,0.00019178,2]
[348085340,1736299546719,-500.0,0.00019178,2]
[348085341,1736299546743,-500.0,0.00019178,2]
[348085342,1736299546767,-500.0,0.00019178,2]
[348085343,1736299546794,-500.0,0.00019178,2]
[348085344,1736299546819,-500.0,0.00019178,2]
[348085345,1736299546844,-500.0,0.00019178,2]
[348085346,1736299546869,-3726.83,0.00019178,2]
[348085347,1736299546892,-500.0,0.00019178,2]
[348085348,1736299546914,-500.0,0.00019178,2]
[348085349,1736299546936,-500.0,0.00019178,2]
[348085350,1736299546958,-500.0,0.00019178,2]
[348085351,1736299546983,-500.0,0.00019178,2]
[348085352,1736299547007,-500.0,0.00019178,2]
[348085353,1736299547031,-500.0,0.00019178,2]
[348085354,1736299547056,-500.0,0.00019178,2]
[348085355,1736299547082,-500.0,0.00019178,2]
[348085356,1736299547108,-500.0,0.00019178,2]
[348085357,1736299547136,-500.0,0.00019178,2]
[348085358,1736299547163,-500.0,0.00019178,2]
[348085359,1736299547189,-500.0,0.00019178,2]
[348085360,1736299547215,-500.0,0.00019178,2]
[348085361,1736299547239,-500.0,0.00019178,2]
[348085362,1736299547265,-500.0,0.00019178,2]
[348085363,1736299547290,-500.0,0.00019178,2]
[348085364,1736299547317,-500.0,0.00019178,2]
[348085365,1736299547341,-500.0,0.00019178,2]
[348085366,1736299547366,-500.0,0.00019178,2]
[348085367,1736299547394,-500.0,0.00019178,2]
[348085368,1736299547420,-500.0,0.00019178,2]
[348085369,1736299547446,-500.0,0.00019178,2]
[348085370,1736299547471,-500.0,0.00019178,2]
[348085371,1736299547497,-500.0,0.00019178,2]
[348085372,1736299547523,-500.0,0.00019178,2]
[348085373,1736299547547,-500.0,0.00019178,2]
[348085374,1736299547574,-500.0,0.00019178,2]
[348085375,1736299547604,-500.0,0.00019178,2]
[348085376,1736299547630,-511.91,0.00019178,2]
[348085377,1736299547655,-500.0,0.00019178,7]
[348085378,1736299547679,-500.0,0.00019178,2]
[348085379,1736299547703,-616.73,0.00019178,2]
[348085380,1736299547728,-500.0,0.00019178,2]
[348085381,1736299547751,-500.0,0.00019178,2]
[348085382,1736299547778,-500.0,0.00019178,2]
[348085383,1736299547802,-500.0,0.00019178,2]
[348085384,1736299547826,-500.0,0.00019178,2]
[348085385,1736299547851,-500.0,0.00019178,2]
[348085386,1736299547875,-500.0,0.00019178,2]
[348085387,1736299547900,-500.0,0.00019178,2]
[348085388,1736299547923,-500.0,0.00019178,2]
[348085389,1736299547946,-157.77,0.00019178,2]
[348085390,1736299547970,-163.905146,0.00019178,2]
[348085391,1736299547996,-500.0,0.00019393,3]
[348085392,1736299548021,-500.0,0.00019393,3]
[348085393,1736299548047,-500.0,0.00019394,3]
[348085394,1736299548075,-500.0,0.00019395,3]
[348085395,1736299548102,-500.0,0.00019396,3]
[348085396,1736299548127,-500.0,0.00019396,3]
[348085397,1736299548155,-500.0,0.00019396,3]
[348085398,1736299548179,-500.0,0.00019396,3]
[348085399,1736299548203,-500.0,0.00019396,3]
[348085400,1736299548234,-1180.0,0.00019396,3]
[348085401,1736299548259,-500.0,0.00019399,3]
[348085402,1736299548286,-500.0,0.00019451,3]
[348085403,1736299548311,-500.0,0.00019451,3]
[348085404,1736299548335,-500.0,0.00019451,3]
[348085405,1736299548359,-500.0,0.00019451,3]
[348085406,1736299548385,-500.0,0.00019451,3]
[348085407,1736299548410,-500.0,0.00019451,3]
[348085408,1736299548434,-500.0,0.00019451,3]
[348085409,1736299548459,-548.6,0.00019451,3]
[348085410,1736299548485,-500.0,0.00019451,3]
[348085411,1736299548509,-500.0,0.00019451,3]
[348085412,1736299548537,-500.0,0.00019451,3]
[348085413,1736299548563,-500.0,0.00019451,3]
[348085414,1736299548589,-500.0,0.00019451,3]
[348085415,1736299548617,-500.0,0.00019451,3]
[348085416,1736299548645,-500.0,0.00019451,3]
[348085417,1736299548671,-500.0,0.00019451,3]
[348085418,1736299548697,-500.0,0.00019451,3]
[348085419,1736299548724,-500.0,0.00019451,3]
[348085420,1736299548749,-500.0,0.00019451,3]
[348085421,1736299548901,-600.07,0.00019451,3]
[348085422,1736299548929,-500.0,0.00019451,3]
[348085423,1736299548955,-500.0,0.00019451,3]
[348085424,1736299548980,-500.0,0.00019451,3]
[348085425,1736299549006,-500.0,0.00019451,3]
[348085426,1736299549032,-500.0,0.00019451,3]
[348085427,1736299549058,-500.0,0.00019451,3]
[348085428,1736299549084,-500.0,0.00019451,3]
[348085429,1736299549109,-500.0,0.00019451,3]
[348085430,1736299549135,-500.0,0.00019451,3]
[348085431,1736299549161,-500.0,0.00019451,3]
[348085432,1736299549186,-575.87,0.00019451,3]
[348085433,1736299549211,-500.0,0.00019451,3]
[348085434,1736299549236,-500.0,0.00019451,3]
[348085435,1736299549260,-500.0,0.00019451,3]
[348085436,1736299549292,-549.01,0.00019451,3]
[348085437,1736299549333,-500.0,0.00019451,3]
[348085438,1736299549360,-500.0,0.00019451,3]
[348085439,1736299549391,-500.0,0.00019451,3]
[348085440,1736299549419,-500.0,0.00019451,3]
[348085441,1736299549449,-500.0,0.00019451,3]
[348085442,1736299549478,-500.0,0.00019451,3]
[348085443,1736299549504,-242.34069104,0.00019451,3]
[348085444,1736299552138,-500.0,0.00019178,2]
[348085445,1736299552162,-500.0,0.00019178,2]
[348085446,1736299552184,-615.06,0.00019178,2]
[348085447,1736299552207,-257.65930896,0.00019451,3]
[348085448,1736299552230,-500.0,0.00019451,3]
[348085449,1736299552252,-557.64,0.00019451,3]
[348085450,1736299552273,-169.3,0.00019452,3]
[348085451,1736299552294,-352.25,0.00019452,3]
[348085452,1736299552315,-500.0,0.00019452,3]
[348085453,1736299552339,-1000.42,0.00019452,3]
[348085454,1736299552361,-500.0,0.00019452,3]
[348085455,1736299552384,-329.32,0.00019452,3]
[348085456,1736299552408,-500.0,0.00019452,3]
[348085457,1736299552430,-500.0,0.00019452,3]
[348085458,1736299552453,-500.0,0.00019452,3]
[348085459,1736299552474,-488.84,0.00019452,3]
[348085460,1736299552494,-154.11,0.00019452,3]
[348085461,1736299552515,-305.7,0.00019452,3]
[348085462,1736299552537,-500.0,0.00019452,3]
[348085463,1736299552561,-251.92,0.00019452,3]
[348085464,1736299552583,-490.29,0.00019452,3]
[348085465,1736299552610,-362.16,0.00019452,3]
[348085466,1736299552636,-500.0,0.00019452,3]
[348085467,1736299552658,-180.3,0.00019452,3]
[348085468,1736299552680,-206.11,0.00019452,3]
[348085469,1736299552701,-501.57,0.00019452,3]
[348085470,1736299552723,-372.52,0.00019452,3]
[348085471,1736299552744,-283.45,0.00019452,3]
[348085472,1736299552765,-485.8,0.00019452,3]
[348085473,1736299552786,-3726.83,0.00019452,3]
[348085474,1736299552809,-170.63,0.00019452,3]
[348085475,1736299552830,-218.76,0.00019452,3]
[348085476,1736299552852,-500.0,0.00019452,3]
[348085477,1736299552874,-500.0,0.00019452,3]
[348085478,1736299552896,-500.0,0.00019452,3]
[348085479,1736299552917,-500.0,0.00019452,3]
[348085480,1736299552938,-486.04488304,0.00019452,3]
[348085481,1736299552959,-500.0,0.00019452,3]
[348085482,1736299552979,-479.65,0.00019452,3]
[348085483,1736299553002,-500.0,0.00019452,3]
[348085484,1736299553024,-500.0,0.00019452,3]
[348085485,1736299553048,-500.0,0.00019452,3]
[348085486,1736299553069,-500.0,0.00019452,3]
[348085487,1736299553091,-500.0,0.00019452,3]
[348085488,1736299553113,-500.0,0.00019452,3]
[348085489,1736299553137,-500.0,0.00019499,3]
[348085490,1736299553158,-500.0,0.00019667,3]
[348085491,1736299553180,-500.0,0.00019669,3]
[348085492,1736299553201,-500.0,0.0001967,3]
[348085493,1736299553224,-1231.31,0.0001967,3]
[348085494,1736299553246,-355.72909367,0.0001967,3]
[348085502,1736299626166,-179.6,0.00019178,2]
[348085503,1736299626191,-500.0,0.00019178,2]
[348085504,1736299626216,-500.0,0.00019178,2]
[348085505,1736299626238,-182.71,0.00019178,2]
[348085506,1736299626268,-500.0,0.00019178,2]
[348085507,1736299626290,-300.0,0.00019451,2]
[348085508,1736299626313,-500.0,0.00019452,3]
[348085509,1736299626336,-500.0,0.00019452,3]
[348085510,1736299626362,-824.27090633,0.0001967,3]
[348085511,1736299626386,-500.0,0.00019725,3]
[348085512,1736299626408,-500.0,0.00019725,3]
[348085513,1736299626433,-432.85,0.00019725,3]
[348085514,1736299626565,-500.0,0.00019725,3]
[348085515,1736299626591,-500.0,0.00019725,3]
[348085516,1736299626614,-500.0,0.00019725,3]
[348085517,1736299626640,-500.0,0.00019725,3]
[348085518,1736299626666,-226.62,0.00019725,3]
[348085519,1736299626690,-204.12,0.00019725,3]
[348085520,1736299626712,-642.6,0.00019725,3]
[348085521,1736299626733,-154.24,0.00019725,3]
[348085522,1736299626756,-500.0,0.00019725,3]
[348085523,1736299626777,-156.69,0.00019726,3]
[348085524,1736299626801,-1000.42,0.00019726,3]
[348085525,1736299626822,-416.5,0.00019726,3]
[348085526,1736299626844,-450.64,0.00019726,3]
[348085527,1736299626868,-500.0,0.00019726,3]
[348085528,1736299626892,-3726.83,0.00019726,3]
[348085529,1736299626914,-500.0,0.00019726,3]
[348085530,1736299626936,-494.61426932,0.00019726,3]
[348085531,1736299626958,-542.31,0.00019726,3]
[348085532,1736299626980,-251.38,0.00019726,3]
[348085533,1736299627003,-500.0,0.00019726,3]
[348085534,1736299627025,-500.0,0.00019726,3]
[348085535,1736299627048,-500.0,0.00019726,3]
[348085536,1736299627071,-642.77,0.00019726,3]
[348085537,1736299627094,-500.0,0.00019726,3]
[348085538,1736299627118,-473.34,0.00019726,3]
[348085539,1736299627141,-237.84,0.00019726,3]
[348085540,1736299627163,-500.0,0.00019726,3]
[348085541,1736299627187,-500.0,0.00019726,3]
[348085542,1736299627208,-151.0,0.000199,2]
[348085543,1736299627232,-231.27044459,0.000199,2]
[348085544,1736299627255,-232.07094568,0.00019941,3]
[348085545,1736299627277,-500.0,0.00019944,3]
[348085546,1736299627300,-1231.31,0.00019944,3]
[348085547,1736299627322,-1180.0,0.00019944,3]
[348085548,1736299627343,-151.0,0.00019973,2]
[348085549,1736299627364,-416.66,0.00019999,3]
[348085550,1736299627386,-500.0,0.00019999,3]
[348085551,1736299627407,-151.0,0.0002,2]
[348085552,1736299627430,-443.73,0.0002,14]
[348085553,1736299627454,-1000.42,0.0002,3]
[348085554,1736299627477,-500.0,0.0002,3]
[348085555,1736299627498,-3726.83,0.0002,3]
[348085556,1736299627521,-500.0,0.0002,3]
[348085557,1736299627542,-500.0,0.0002,3]
[348085558,1736299627564,-500.0,0.0002,3]
[348085559,1736299627588,-500.0,0.0002,3]
[348085560,1736299627610,-518.55407921,0.0002,3]
[348085561,1736299627632,-500.0,0.0002,3]
[348085562,1736299627656,-500.0,0.0002,3]
[348085563,1736299627676,-151.0,0.00020137,2]
[348085564,1736299627696,-747.33,0.000202,2]
[348085565,1736299627719,-1231.31,0.00020218,3]
[348085566,1736299627740,-1180.0,0.00020218,3]
[348085567,1736299627760,-160.0,0.00020272,2]
[348085568,1736299627781,-151.0,0.00020273,2]
[348085569,1736299627803,-1000.42,0.00020273,3]
[348085570,1736299627824,-224.07,0.00020273,3]
[348085571,1736299627849,-500.0,0.00020273,3]
[348085572,1736299627871,-3726.83,0.00020273,3]
[348085573,1736299627893,-624.53,0.00020273,3]
[348085574,1736299627915,-500.0,0.00020273,3]
[348085575,1736299627937,-500.0,0.00020273,3]
[348085576,1736299627960,-500.0,0.00020273,3]
[348085577,1736299627983,-500.0,0.00020273,3]
[348085578,1736299628008,-500.0,0.00020273,3]
[348085579,1736299628029,-167.40026951,0.00020313,2]
[348085580,1736299628050,-151.0,0.00020417,2]
[348085581,1736299628074,-1231.31,0.00020492,3]
[348085582,1736299628098,-1180.0,0.00020492,3]
[348085583,1736299628121,-231.27044457,0.000205,2]
[348085584,1736299628143,-151.0,0.00020547,2]
[348085585,1736299628168,-1000.42,0.00020547,3]
[348085586,1736299628197,-500.0,0.00020547,3]
[348085587,1736299628220,-3726.83,0.00020547,3]
[348085588,1736299628243,-188.80527696,0.00020547,3]
[348085589,1736299628266,-623.68,0.00020547,3]
[348085590,1736299628289,-500.0,0.00020547,3]
[348085591,1736299628312,-500.0,0.00020547,3]
[348085592,1736299628338,-500.0,0.00020547,3]
[348085593,1736299628360,-151.0,0.00020624,2]
[348085594,1736299628382,-1231.31,0.00020766,3]
[348085595,1736299628406,-1180.0,0.00020766,3]
[348085596,1736299628432,-1000.42,0.00020821,3]
[348085597,1736299628457,-500.0,0.00020821,3]
[348085598,1736299628480,-3726.83,0.00020821,3]
[348085599,1736299628506,-449.49,0.00020821,3]
[348085600,1736299628531,-500.0,0.00020821,3]
[348085601,1736299628554,-500.0,0.00020821,3]
[348085602,1736299628576,-188.3982886,0.00020898,2]
[348085603,1736299628597,-5707.29558905,0.00021,2]
[348085604,1736299628620,-1231.31,0.0002104,3]
[348085605,1736299628647,-1180.0,0.0002104,3]
[348085606,1736299628671,-1000.42,0.00021095,3]
[348085607,1736299628693,-500.0,0.00021095,3]
[348085608,1736299628715,-3726.83,0.00021095,3]
[348085609,1736299628737,-500.0,0.00021095,3]
[348085610,1736299628760,-500.0,0.00021095,3]
[348085611,1736299628783,-231.27044457,0.000211,2]